[Event "Early-Titled-Tuesday-Blitz-March-26-2024"]
[Site "Chess.com"]
[Date "2024.03.26"]
[Round "8"]
[White "whiteglovethief"]
[Black "Massakru"]
[Result "1-0"]
[WhiteElo "2508"]
[BlackElo "2355"]
[TimeControl "180+1"]
[EndTime "9:26:27 PDT"]
[Termination "whiteglovethief won on time"]

1. d4 {[%clk 0:03:00.9]} 1... Nf6 {[%clk 0:02:59.7]} 2. c4 {[%clk 0:02:59.2]}
2... e6 {[%clk 0:02:59.7]} 3. Nf3 {[%clk 0:02:58.5]} 3... d5 {[%clk 0:03:00]} 4.
g3 {[%clk 0:02:58.7]} 4... h6 {[%clk 0:02:59.5]} 5. Bg2 {[%clk 0:02:58.9]} 5...
Bd6 {[%clk 0:02:59.7]} 6. O-O {[%clk 0:02:57.6]} 6... O-O {[%clk 0:03:00.1]} 7.
Nbd2 {[%clk 0:02:57.9]} 7... Nc6 {[%clk 0:02:58.4]} 8. Qc2 {[%clk 0:02:56.3]}
8... Nb4 {[%clk 0:02:52.3]} 9. Qb1 {[%clk 0:02:55.7]} 9... c6 {[%clk 0:02:50]}
10. a3 {[%clk 0:02:54.3]} 10... Na6 {[%clk 0:02:49.7]} 11. e4 {[%clk 0:02:48.8]}
11... dxe4 {[%clk 0:02:49.4]} 12. Nxe4 {[%clk 0:02:48.8]} 12... Be7 {[%clk
0:02:48.2]} 13. Rd1 {[%clk 0:02:46.3]} 13... Nc7 {[%clk 0:02:47.1]} 14. Ne5
{[%clk 0:02:43.9]} 14... Nd7 {[%clk 0:02:40]} 15. Be3 {[%clk 0:02:33.2]} 15...
Nxe5 {[%clk 0:02:22.8]} 16. dxe5 {[%clk 0:02:34.1]} 16... Qe8 {[%clk 0:02:22.3]}
17. Nd6 {[%clk 0:02:32.6]} 17... Bxd6 {[%clk 0:02:21.7]} 18. exd6 {[%clk
0:02:33.1]} 18... Na6 {[%clk 0:02:19.9]} 19. b4 {[%clk 0:02:31.6]} 19... e5
{[%clk 0:02:10]} 20. b5 {[%clk 0:02:17.4]} 20... Nb8 {[%clk 0:02:08]} 21. Bc5
{[%clk 0:02:15.1]} 21... Nd7 {[%clk 0:02:00.3]} 22. bxc6 {[%clk 0:02:13.1]}
22... Nxc5 {[%clk 0:01:58.7]} 23. Qb5 {[%clk 0:02:08.8]} 23... b6 {[%clk
0:01:48.1]} 24. d7 {[%clk 0:02:06.7]} 24... Qe7 {[%clk 0:01:41.9]} 25. d8=Q
{[%clk 0:01:41.3]} 25... Rxd8 {[%clk 0:01:39.6]} 26. c7 {[%clk 0:01:41.5]} 26...
Rxd1+ {[%clk 0:01:34.7]} 27. Rxd1 {[%clk 0:01:42.4]} 27... Bb7 {[%clk
0:01:03.9]} 28. Bxb7 {[%clk 0:01:40.7]} 28... Nxb7 {[%clk 0:01:03.6]} 29. Qc6
{[%clk 0:01:41.1]} 29... Rc8 {[%clk 0:01:01.8]} 30. Qxb7 {[%clk 0:01:40.2]}
30... Qxc7 {[%clk 0:01:01.2]} 31. Qe4 {[%clk 0:01:37.2]} 31... f6 {[%clk
0:00:49.2]} 32. Qf5 {[%clk 0:01:21.5]} 32... Qxc4 {[%clk 0:00:39.7]} 33. Rd7
{[%clk 0:01:22]} 33... Qc1+ {[%clk 0:00:32]} 34. Kg2 {[%clk 0:01:22.3]} 34...
Qc6+ {[%clk 0:00:31.7]} 35. Kh3 {[%clk 0:01:11.6]} 35... Re8 {[%clk 0:00:30.3]}
36. Rxa7 {[%clk 0:01:03.5]} 36... Qe6 {[%clk 0:00:27.3]} 37. Qxe6+ {[%clk
0:00:58.3]} 37... Rxe6 {[%clk 0:00:28.2]} 38. Kg4 {[%clk 0:00:57.4]} 38... g6
{[%clk 0:00:27.5]} 39. Rb7 {[%clk 0:00:57.2]} 39... Rc6 {[%clk 0:00:27.3]} 40.
h4 {[%clk 0:00:49.7]} 40... h5+ {[%clk 0:00:27]} 41. Kh3 {[%clk 0:00:49.1]}
41... Rd6 {[%clk 0:00:26.9]} 42. Kg2 {[%clk 0:00:48.6]} 42... Kf8 {[%clk
0:00:27.1]} 43. a4 {[%clk 0:00:45.6]} 43... f5 {[%clk 0:00:27.1]} 44. Kf3 {[%clk
0:00:41.2]} 44... Rd3+ {[%clk 0:00:23.4]} 45. Kg2 {[%clk 0:00:41.5]} 45... Rd6
{[%clk 0:00:23.1]} 46. Kf3 {[%clk 0:00:41]} 46... Kg8 {[%clk 0:00:22.1]} 47. Ke3
{[%clk 0:00:40.6]} 47... Kf8 {[%clk 0:00:21.4]} 48. Ke2 {[%clk 0:00:36.6]} 48...
Kg8 {[%clk 0:00:21]} 49. Re7 {[%clk 0:00:36.7]} 49... e4 {[%clk 0:00:21.3]} 50.
Rb7 {[%clk 0:00:36.5]} 50... Kf8 {[%clk 0:00:21.6]} 51. Ke3 {[%clk 0:00:36.5]}
51... Kg8 {[%clk 0:00:21.4]} 52. Kf4 {[%clk 0:00:36.7]} 52... Kf8 {[%clk
0:00:20.3]} 53. Ke5 {[%clk 0:00:35.8]} 53... Rc6 {[%clk 0:00:20.1]} 54. Kf4
{[%clk 0:00:31.1]} 54... Kg8 {[%clk 0:00:19.7]} 55. Kg5 {[%clk 0:00:31.1]} 55...
Kf8 {[%clk 0:00:19.5]} 56. Kh6 {[%clk 0:00:30.3]} 56... Rd6 {[%clk 0:00:18.4]}
57. Kh7 {[%clk 0:00:27.7]} 57... Rc6 {[%clk 0:00:17.8]} 58. Rg7 {[%clk
0:00:21.6]} 58... Rc2 {[%clk 0:00:15]} 59. Rxg6 {[%clk 0:00:21.9]} 59... Rxf2
{[%clk 0:00:15]} 60. Rxb6 {[%clk 0:00:22.6]} 60... e3 {[%clk 0:00:14.9]} 61. Re6
{[%clk 0:00:22.8]} 61... e2 {[%clk 0:00:14.9]} 62. a5 {[%clk 0:00:21.2]} 62...
Kf7 {[%clk 0:00:12.8]} 63. Re3 {[%clk 0:00:20.5]} 63... Rf3 {[%clk 0:00:09.9]}
64. Rxe2 {[%clk 0:00:20.4]} 64... Rxg3 {[%clk 0:00:10]} 65. Ra2 {[%clk
0:00:20.7]} 65... Rg7+ {[%clk 0:00:07.4]} 66. Kh6 {[%clk 0:00:20.1]} 66... Kf6
{[%clk 0:00:08]} 67. Rb2 {[%clk 0:00:16.9]} 67... Rg6+ {[%clk 0:00:08.1]} 68.
Kxh5 {[%clk 0:00:16.7]} 68... Rg4 {[%clk 0:00:08.4]} 69. Rb6+ {[%clk 0:00:16.3]}
69... Kg7 {[%clk 0:00:08.3]} 70. a6 {[%clk 0:00:16]} 70... Ra4 {[%clk
0:00:08.4]} 71. Kg5 {[%clk 0:00:14.6]} 71... f4 {[%clk 0:00:07.3]} 72. Rb7+
{[%clk 0:00:14.8]} 72... Kf8 {[%clk 0:00:07]} 73. a7 {[%clk 0:00:15.3]} 73...
Ra5+ {[%clk 0:00:05.5]} 74. Kg4 {[%clk 0:00:14.5]} 1-0

[Event "Early-Titled-Tuesday-Blitz-March-26-2024"]
[Site "Chess.com"]
[Date "2024.03.26"]
[Round "8"]
[White "ChessQueen"]
[Black "Flaccidmoves"]
[Result "1/2-1/2"]
[WhiteElo "2714"]
[BlackElo "2457"]
[TimeControl "180+1"]
[EndTime "9:26:28 PDT"]
[Termination "Game drawn - insufficient material"]

1. e4 {[%clk 0:02:59.9]} 1... Nf6 {[%clk 0:02:59.7]} 2. e5 {[%clk 0:02:59.9]}
2... Nd5 {[%clk 0:03:00.4]} 3. d4 {[%clk 0:02:59.2]} 3... d6 {[%clk 0:03:00.4]}
4. Nf3 {[%clk 0:02:59.8]} 4... dxe5 {[%clk 0:02:59.6]} 5. Nxe5 {[%clk
0:02:59.9]} 5... c6 {[%clk 0:03:00.3]} 6. Bc4 {[%clk 0:02:59.7]} 6... Bf5 {[%clk
0:02:59.3]} 7. Qf3 {[%clk 0:02:56.4]} 7... e6 {[%clk 0:02:57.8]} 8. g4 {[%clk
0:02:54.8]} 8... Bg6 {[%clk 0:02:56.9]} 9. h4 {[%clk 0:02:50.7]} 9... Nd7 {[%clk
0:02:56.2]} 10. Bb3 {[%clk 0:02:11]} 10... Nxe5 {[%clk 0:02:52]} 11. dxe5 {[%clk
0:02:11.9]} 11... h5 {[%clk 0:02:35.2]} 12. g5 {[%clk 0:02:02.2]} 12... Qc7
{[%clk 0:02:19.3]} 13. Qe2 {[%clk 0:02:01.8]} 13... Bc5 {[%clk 0:02:08]} 14. Bd2
{[%clk 0:01:56.5]} 14... O-O {[%clk 0:01:59.2]} 15. Nc3 {[%clk 0:01:45.5]} 15...
Bd4 {[%clk 0:01:58.7]} 16. Bxd5 {[%clk 0:01:29.9]} 16... exd5 {[%clk 0:01:51.7]}
17. f4 {[%clk 0:01:29.9]} 17... Bxc2 {[%clk 0:01:45.2]} 18. Rc1 {[%clk
0:01:29.4]} 18... Bxc3 {[%clk 0:01:38]} 19. Bxc3 {[%clk 0:01:24.6]} 19... Be4
{[%clk 0:01:37.9]} 20. O-O {[%clk 0:01:23.1]} 20... Qd7 {[%clk 0:01:34.7]} 21.
Kh2 {[%clk 0:01:20.6]} 21... g6 {[%clk 0:01:16.4]} 22. Bd4 {[%clk 0:01:20.3]}
22... Rfe8 {[%clk 0:01:11.6]} 23. b4 {[%clk 0:01:19.6]} 23... a5 {[%clk
0:01:10]} 24. b5 {[%clk 0:01:02]} 24... cxb5 {[%clk 0:01:09.8]} 25. Rc5 {[%clk
0:01:02.2]} 25... b4 {[%clk 0:00:59.4]} 26. Rfc1 {[%clk 0:00:59.2]} 26... Qa4
{[%clk 0:00:51.1]} 27. Qb2 {[%clk 0:00:52.5]} 27... Qd7 {[%clk 0:00:41.1]} 28.
e6 {[%clk 0:00:49.5]} 28... Rxe6 {[%clk 0:00:26.7]} 29. Bh8 {[%clk 0:00:32.6]}
29... d4 {[%clk 0:00:26.7]} 30. Bxd4 {[%clk 0:00:24.9]} 30... Bc6 {[%clk
0:00:23.7]} 31. Bh8 {[%clk 0:00:15.8]} 31... Re2+ {[%clk 0:00:23.8]} 32. Qxe2
{[%clk 0:00:14.9]} 32... Kxh8 {[%clk 0:00:24.5]} 33. Rd1 {[%clk 0:00:14.8]}
33... Qe6 {[%clk 0:00:17.5]} 34. Qxe6 {[%clk 0:00:14.1]} 34... fxe6 {[%clk
0:00:18.4]} 35. Rc4 {[%clk 0:00:12.9]} 35... Bd5 {[%clk 0:00:18.2]} 36. Rc7
{[%clk 0:00:13]} 36... Rf8 {[%clk 0:00:17.5]} 37. Kg3 {[%clk 0:00:12.4]} 37...
a4 {[%clk 0:00:16.4]} 38. Rd4 {[%clk 0:00:12.4]} 38... b3 {[%clk 0:00:16.5]} 39.
axb3 {[%clk 0:00:12.8]} 39... axb3 {[%clk 0:00:17.4]} 40. Rb4 {[%clk 0:00:13]}
40... Kg8 {[%clk 0:00:14.9]} 41. Kf2 {[%clk 0:00:11.7]} 41... Rf7 {[%clk
0:00:15.3]} 42. Rxf7 {[%clk 0:00:10.9]} 42... Kxf7 {[%clk 0:00:16.2]} 43. Ke3
{[%clk 0:00:11]} 43... Ke7 {[%clk 0:00:16.2]} 44. Kd2 {[%clk 0:00:08.4]} 44...
Kd6 {[%clk 0:00:16.5]} 45. Kc3 {[%clk 0:00:08.8]} 45... Kc5 {[%clk 0:00:16.1]}
46. Ra4 {[%clk 0:00:08.9]} 46... b5 {[%clk 0:00:12.6]} 47. Ra7 {[%clk
0:00:08.8]} 47... b4+ {[%clk 0:00:13]} 48. Kb2 {[%clk 0:00:08.9]} 48... Kd4
{[%clk 0:00:13.5]} 49. Rg7 {[%clk 0:00:08.2]} 49... Be4 {[%clk 0:00:12.4]} 50.
Rd7+ {[%clk 0:00:08.1]} 50... Ke3 {[%clk 0:00:12.4]} 51. Rd6 {[%clk 0:00:06.5]}
51... Bf5 {[%clk 0:00:12.2]} 52. Rb6 {[%clk 0:00:06.8]} 52... Kxf4 {[%clk
0:00:10.6]} 53. Rxb4+ {[%clk 0:00:07.1]} 53... Kg3 {[%clk 0:00:11.2]} 54. Kxb3
{[%clk 0:00:07]} 54... e5 {[%clk 0:00:11.7]} 55. Kc3 {[%clk 0:00:07.1]} 55... e4
{[%clk 0:00:12.1]} 56. Kd4 {[%clk 0:00:06.3]} 56... Kxh4 {[%clk 0:00:12.2]} 57.
Ke3 {[%clk 0:00:06.3]} 57... Kxg5 {[%clk 0:00:12.6]} 58. Rb1 {[%clk 0:00:06.1]}
58... h4 {[%clk 0:00:12.7]} 59. Rg1+ {[%clk 0:00:05.9]} 59... Kh5 {[%clk
0:00:12.9]} 60. Kf4 {[%clk 0:00:06.7]} 60... h3 {[%clk 0:00:12.2]} 61. Kg3
{[%clk 0:00:06.9]} 61... g5 {[%clk 0:00:11.4]} 62. Rf1 {[%clk 0:00:07.5]} 62...
Kg6 {[%clk 0:00:11.4]} 63. Ra1 {[%clk 0:00:07.2]} 63... g4 {[%clk 0:00:11]} 64.
Ra6+ {[%clk 0:00:06.6]} 64... Kg5 {[%clk 0:00:11.4]} 65. Ra5 {[%clk 0:00:07.5]}
65... e3 {[%clk 0:00:09.7]} 66. Re5 {[%clk 0:00:07.6]} 66... h2 {[%clk
0:00:07.8]} 67. Kxh2 {[%clk 0:00:07.9]} 67... Kf4 {[%clk 0:00:08.3]} 68. Re8
{[%clk 0:00:06.8]} 68... Be4 {[%clk 0:00:07.6]} 69. Kg1 {[%clk 0:00:06.6]} 69...
g3 {[%clk 0:00:07.5]} 70. Rf8+ {[%clk 0:00:06.5]} 70... Ke5 {[%clk 0:00:07.7]}
71. Re8+ {[%clk 0:00:06.7]} 71... Kd4 {[%clk 0:00:08]} 72. Rd8+ {[%clk 0:00:07]}
72... Kc3 {[%clk 0:00:08.3]} 73. Rc8+ {[%clk 0:00:06.6]} 73... Kd2 {[%clk
0:00:08.7]} 74. Rd8+ {[%clk 0:00:06.6]} 74... Bd3 {[%clk 0:00:09.3]} 75. Re8
{[%clk 0:00:06.9]} 75... e2 {[%clk 0:00:09.6]} 76. Kg2 {[%clk 0:00:07.3]} 76...
e1=Q {[%clk 0:00:09.8]} 77. Rxe1 {[%clk 0:00:06.7]} 77... Kxe1 {[%clk
0:00:10.1]} 78. Kxg3 {[%clk 0:00:07.6]} 1/2-1/2

[Event "Early-Titled-Tuesday-Blitz-March-26-2024"]
[Site "Chess.com"]
[Date "2024.03.26"]
[Round "8"]
[White "iAspet"]
[Black "Boundless_Strike"]
[Result "0-1"]
[WhiteElo "2468"]
[BlackElo "2619"]
[TimeControl "180+1"]
[EndTime "9:26:31 PDT"]
[Termination "Boundless_Strike won by resignation"]

1. d4 {[%clk 0:02:56.4]} 1... e5 {[%clk 0:03:00.1]} 2. dxe5 {[%clk 0:02:56]}
2... d6 {[%clk 0:03:00.5]} 3. Nf3 {[%clk 0:02:52.7]} 3... Bg4 {[%clk 0:03:00.3]}
4. Nc3 {[%clk 0:02:48.4]} 4... Nc6 {[%clk 0:03:00.4]} 5. exd6 {[%clk 0:02:39.9]}
5... Bxd6 {[%clk 0:03:00.4]} 6. e4 {[%clk 0:02:39.7]} 6... Qe7 {[%clk
0:03:00.1]} 7. Bd3 {[%clk 0:02:37.7]} 7... O-O-O {[%clk 0:02:59.4]} 8. h3 {[%clk
0:02:37.5]} 8... Bh5 {[%clk 0:02:58]} 9. g4 {[%clk 0:02:34.6]} 9... Bg6 {[%clk
0:02:55.4]} 10. Qe2 {[%clk 0:02:34.1]} 10... h6 {[%clk 0:02:45.5]} 11. Bd2
{[%clk 0:02:17.1]} 11... Nf6 {[%clk 0:02:45.5]} 12. O-O-O {[%clk 0:02:17.2]}
12... Rhe8 {[%clk 0:02:36.6]} 13. Rhe1 {[%clk 0:02:06.8]} 13... Kb8 {[%clk
0:02:33.5]} 14. Kb1 {[%clk 0:02:06.9]} 14... Bb4 {[%clk 0:02:19.1]} 15. e5
{[%clk 0:01:17.7]} 15... Bxd3 {[%clk 0:02:14.8]} 16. cxd3 {[%clk 0:01:18.6]}
16... Nd5 {[%clk 0:02:06.4]} 17. Nxd5 {[%clk 0:01:12.5]} 17... Rxd5 {[%clk
0:02:07.3]} 18. Bxb4 {[%clk 0:01:11.6]} 18... Nxb4 {[%clk 0:02:05.5]} 19. d4
{[%clk 0:01:08.5]} 19... Red8 {[%clk 0:02:01.9]} 20. Qc4 {[%clk 0:01:07]} 20...
Nc6 {[%clk 0:02:01]} 21. a3 {[%clk 0:00:59.2]} 21... Qd7 {[%clk 0:01:58.5]} 22.
Re4 {[%clk 0:00:47.4]} 22... a6 {[%clk 0:01:44.3]} 23. Ka2 {[%clk 0:00:43.8]}
23... Qe6 {[%clk 0:01:44.1]} 24. Rc1 {[%clk 0:00:36.8]} 24... R8d7 {[%clk
0:01:41.3]} 25. Ka1 {[%clk 0:00:34.9]} 25... Na5 {[%clk 0:01:39.3]} 26. Qc3
{[%clk 0:00:30.1]} 26... Nc6 {[%clk 0:01:01]} 27. Kb1 {[%clk 0:00:26]} 27... Qg6
{[%clk 0:00:56.9]} 28. Qc2 {[%clk 0:00:15.3]} 28... Nxd4 {[%clk 0:00:40.5]} 29.
Nxd4 {[%clk 0:00:15.2]} 29... Rxd4 {[%clk 0:00:40.6]} 30. Rxd4 {[%clk 0:00:15]}
30... Qxc2+ {[%clk 0:00:40.8]} 31. Kxc2 {[%clk 0:00:15.4]} 31... Rxd4 {[%clk
0:00:41.5]} 32. Re1 {[%clk 0:00:13.4]} 32... Rf4 {[%clk 0:00:38.2]} 33. Re3
{[%clk 0:00:03.8]} 33... Rxf2+ {[%clk 0:00:37.9]} 34. Kc3 {[%clk 0:00:04.5]}
34... Kc8 {[%clk 0:00:32.3]} 35. b4 {[%clk 0:00:04.1]} 35... Kd7 {[%clk
0:00:32.3]} 36. Kd4 {[%clk 0:00:03.4]} 36... Ke6 {[%clk 0:00:30]} 37. Ke4 {[%clk
0:00:01.7]} 37... Rd2 {[%clk 0:00:27.4]} 38. Rc3 {[%clk 0:00:02]} 38... c6
{[%clk 0:00:27.9]} 39. Re3 {[%clk 0:00:02.1]} 39... Rd5 {[%clk 0:00:27.5]} 40.
Kf4 {[%clk 0:00:02.7]} 40... Rd4+ {[%clk 0:00:27.9]} 41. Kf3 {[%clk 0:00:02.9]}
41... Kd5 {[%clk 0:00:28.4]} 42. Kf2 {[%clk 0:00:01.4]} 42... Re4 {[%clk
0:00:17.4]} 43. Rf3 {[%clk 0:00:01.4]} 43... Ke6 {[%clk 0:00:17.4]} 44. Rd3
{[%clk 0:00:01.7]} 44... Rxe5 {[%clk 0:00:17.3]} 45. Kf3 {[%clk 0:00:02.1]}
45... Rd5 {[%clk 0:00:16.7]} 46. Re3+ {[%clk 0:00:02.6]} 46... Kd7 {[%clk
0:00:17.3]} 47. Kg3 {[%clk 0:00:01.6]} 47... a5 {[%clk 0:00:17.8]} 48. bxa5
{[%clk 0:00:01.3]} 48... Rxa5 {[%clk 0:00:18.5]} 49. h4 {[%clk 0:00:01.9]} 49...
Rd5 {[%clk 0:00:17]} 50. Kf4 {[%clk 0:00:02]} 50... b5 {[%clk 0:00:17.2]} 51. g5
{[%clk 0:00:01.9]} 51... hxg5+ {[%clk 0:00:17.4]} 52. hxg5 {[%clk 0:00:02.8]}
52... g6 {[%clk 0:00:18.2]} 53. Kg4 {[%clk 0:00:02.9]} 53... Rd4+ {[%clk
0:00:18.6]} 54. Kg3 {[%clk 0:00:03.2]} 54... c5 {[%clk 0:00:19]} 55. Rf3 {[%clk
0:00:03.6]} 55... Ke6 {[%clk 0:00:18.7]} 56. Rb3 {[%clk 0:00:03.9]} 56... b4
{[%clk 0:00:16.9]} 57. axb4 {[%clk 0:00:04.4]} 57... cxb4 {[%clk 0:00:17.1]} 58.
Rf3 {[%clk 0:00:04.7]} 58... Rd7 {[%clk 0:00:16.6]} 59. Rf6+ {[%clk 0:00:03.6]}
59... Kd5 {[%clk 0:00:15.8]} 60. Rb6 {[%clk 0:00:04.2]} 60... Kc4 {[%clk
0:00:16.3]} 61. Kf4 {[%clk 0:00:04.5]} 61... b3 {[%clk 0:00:16.2]} 62. Ke5
{[%clk 0:00:04.2]} 62... Kc3 {[%clk 0:00:16]} 63. Rc6+ {[%clk 0:00:04.5]} 63...
Kb2 {[%clk 0:00:16]} 64. Rb6 {[%clk 0:00:04.7]} 64... Kc2 {[%clk 0:00:16]} 65.
Rc6+ {[%clk 0:00:04.9]} 65... Kb1 {[%clk 0:00:16.6]} 66. Rb6 {[%clk 0:00:05.5]}
66... b2 {[%clk 0:00:17.2]} 67. Rb8 {[%clk 0:00:04.5]} 67... Ra7 {[%clk
0:00:17.2]} 68. Rb3 {[%clk 0:00:02.8]} 68... Ka2 {[%clk 0:00:17.3]} 69. Rg3
{[%clk 0:00:01.4]} 69... b1=Q {[%clk 0:00:17.5]} 70. Rg2+ {[%clk 0:00:02]} 70...
Qb2+ {[%clk 0:00:17.9]} 71. Rxb2+ {[%clk 0:00:02]} 71... Kxb2 {[%clk 0:00:18.6]}
0-1

[Event "Early-Titled-Tuesday-Blitz-March-26-2024"]
[Site "Chess.com"]
[Date "2024.03.26"]
[Round "8"]
[White "Donskov_AN"]
[Black "Aradhya2000"]
[Result "1/2-1/2"]
[WhiteElo "2396"]
[BlackElo "2739"]
[TimeControl "180+1"]
[EndTime "9:26:54 PDT"]
[Termination "Game drawn - insufficient material"]

1. e4 {[%clk 0:02:59.2]} 1... e5 {[%clk 0:03:00]} 2. Nf3 {[%clk 0:02:59.4]} 2...
Nc6 {[%clk 0:03:00.4]} 3. Nc3 {[%clk 0:03:00.2]} 3... Nf6 {[%clk 0:03:00.4]} 4.
d4 {[%clk 0:03:00.5]} 4... Bb4 {[%clk 0:03:01]} 5. d5 {[%clk 0:02:58.2]} 5...
Ne7 {[%clk 0:03:00.9]} 6. Bd3 {[%clk 0:02:57.3]} 6... d6 {[%clk 0:02:58.7]} 7.
O-O {[%clk 0:02:57.2]} 7... Bxc3 {[%clk 0:02:59]} 8. bxc3 {[%clk 0:02:57.4]}
8... O-O {[%clk 0:02:59.2]} 9. c4 {[%clk 0:02:57.6]} 9... Ng6 {[%clk 0:02:58.8]}
10. Re1 {[%clk 0:02:56.1]} 10... Re8 {[%clk 0:02:47]} 11. Nd2 {[%clk 0:02:55.2]}
11... Bg4 {[%clk 0:02:43]} 12. f3 {[%clk 0:02:55.4]} 12... Bd7 {[%clk
0:02:43.2]} 13. Nf1 {[%clk 0:02:55.8]} 13... b6 {[%clk 0:02:40.3]} 14. Ne3
{[%clk 0:02:55.6]} 14... h5 {[%clk 0:02:34.5]} 15. Bf1 {[%clk 0:02:55.1]} 15...
h4 {[%clk 0:02:34.5]} 16. Re2 {[%clk 0:02:55.3]} 16... a6 {[%clk 0:02:23.3]} 17.
Bd2 {[%clk 0:02:54.5]} 17... b5 {[%clk 0:02:23.2]} 18. cxb5 {[%clk 0:02:53.7]}
18... axb5 {[%clk 0:02:23.4]} 19. Be1 {[%clk 0:02:52.6]} 19... Nh5 {[%clk
0:02:19.5]} 20. Rd2 {[%clk 0:02:51.2]} 20... Nf6 {[%clk 0:02:17.2]} 21. Bf2
{[%clk 0:02:50.4]} 21... Qb8 {[%clk 0:02:15.8]} 22. c3 {[%clk 0:02:48.8]} 22...
Ra3 {[%clk 0:02:14.1]} 23. Rb2 {[%clk 0:02:36.4]} 23... Qa8 {[%clk 0:01:55]} 24.
Bxb5 {[%clk 0:02:29.2]} 24... Bxb5 {[%clk 0:01:54.5]} 25. Rxb5 {[%clk
0:02:30.1]} 25... Rxa2 {[%clk 0:01:55.2]} 26. Rxa2 {[%clk 0:02:27.8]} 26... Qxa2
{[%clk 0:01:54.9]} 27. Qb1 {[%clk 0:02:27.8]} 27... Qd2 {[%clk 0:01:43.1]} 28.
Qc2 {[%clk 0:02:22.4]} 28... Qxc2 {[%clk 0:01:41.9]} 29. Nxc2 {[%clk 0:02:23.3]}
29... Rc8 {[%clk 0:01:26.3]} 30. g3 {[%clk 0:02:23]} 30... c6 {[%clk 0:01:23.5]}
31. dxc6 {[%clk 0:02:23]} 31... Rxc6 {[%clk 0:01:22]} 32. Rb8+ {[%clk
0:02:20.9]} 32... Kh7 {[%clk 0:01:21.8]} 33. Be1 {[%clk 0:02:18]} 33... hxg3
{[%clk 0:01:21.6]} 34. hxg3 {[%clk 0:02:18.3]} 34... Ra6 {[%clk 0:01:12.5]} 35.
Rb2 {[%clk 0:02:14.9]} 35... Nf8 {[%clk 0:01:08.5]} 36. Kf2 {[%clk 0:02:14.5]}
36... Ne6 {[%clk 0:01:08.6]} 37. Ke2 {[%clk 0:02:13.1]} 37... Nc5 {[%clk
0:01:08]} 38. Bf2 {[%clk 0:02:08.4]} 38... Rc6 {[%clk 0:01:01.3]} 39. Bxc5
{[%clk 0:02:02.7]} 39... Rxc5 {[%clk 0:01:01.4]} 40. Kd3 {[%clk 0:02:03.1]}
40... d5 {[%clk 0:00:55.7]} 41. Ne3 {[%clk 0:02:03.2]} 41... dxe4+ {[%clk
0:00:53.1]} 42. fxe4 {[%clk 0:02:04.1]} 42... Kg6 {[%clk 0:00:40.9]} 43. c4
{[%clk 0:02:04.1]} 43... Nh5 {[%clk 0:00:40.7]} 44. Rb5 {[%clk 0:02:03.2]} 44...
Rc8 {[%clk 0:00:38]} 45. Rxe5 {[%clk 0:02:00.5]} 45... Nxg3 {[%clk 0:00:37.4]}
46. c5 {[%clk 0:01:59.1]} 46... f6 {[%clk 0:00:29.2]} 47. Rd5 {[%clk 0:01:56.3]}
47... Nh5 {[%clk 0:00:29.2]} 48. Kc4 {[%clk 0:01:52.4]} 48... Nf4 {[%clk
0:00:28.9]} 49. Rf5 {[%clk 0:01:39.7]} 49... Ne6 {[%clk 0:00:28.5]} 50. Nc2
{[%clk 0:01:32.4]} 50... Kf7 {[%clk 0:00:27.7]} 51. Nd4 {[%clk 0:01:32.2]} 51...
Nxd4 {[%clk 0:00:27.7]} 52. Kxd4 {[%clk 0:01:32.4]} 52... Ke6 {[%clk 0:00:28.3]}
53. Rd5 {[%clk 0:01:32]} 53... Ke7 {[%clk 0:00:19.8]} 54. Kc4 {[%clk 0:01:24]}
54... g5 {[%clk 0:00:19.6]} 55. Kb5 {[%clk 0:01:11]} 55... g4 {[%clk 0:00:20]}
56. c6 {[%clk 0:01:09.2]} 56... g3 {[%clk 0:00:19.6]} 57. Rd7+ {[%clk
0:01:09.4]} 57... Ke6 {[%clk 0:00:20.1]} 58. Rg7 {[%clk 0:01:07.7]} 58... Kd6
{[%clk 0:00:20.5]} 59. Rxg3 {[%clk 0:00:40.5]} 59... Rxc6 {[%clk 0:00:19.8]} 60.
e5+ {[%clk 0:00:40.8]} 60... Kd5 {[%clk 0:00:09.6]} 61. Rd3+ {[%clk 0:00:40.2]}
61... Kxe5 {[%clk 0:00:10]} 62. Kxc6 {[%clk 0:00:40.1]} 62... f5 {[%clk
0:00:10]} 63. Kc5 {[%clk 0:00:25.6]} 63... f4 {[%clk 0:00:09.6]} 64. Rd8 {[%clk
0:00:21.3]} 64... Ke4 {[%clk 0:00:09.4]} 65. Re8+ {[%clk 0:00:21]} 65... Kd3
{[%clk 0:00:09.1]} 66. Rd8+ {[%clk 0:00:19]} 66... Ke3 {[%clk 0:00:09.2]} 67.
Rf8 {[%clk 0:00:19.3]} 67... f3 {[%clk 0:00:09]} 68. Kc4 {[%clk 0:00:10.5]}
68... f2 {[%clk 0:00:09.2]} 69. Kc3 {[%clk 0:00:09.4]} 69... Ke2 {[%clk
0:00:09.7]} 70. Re8+ {[%clk 0:00:09.8]} 70... Kd1 {[%clk 0:00:09.7]} 71. Rd8+
{[%clk 0:00:07]} 71... Ke2 {[%clk 0:00:09.8]} 72. Rd2+ {[%clk 0:00:04.7]} 72...
Ke1 {[%clk 0:00:09.8]} 73. Rxf2 {[%clk 0:00:04.1]} 73... Kxf2 {[%clk 0:00:09.8]}
1/2-1/2